bitfinex/quotes_BTCUSD_20220226
["timestamp","ask_amount","ask_price","bid_price","bid_amount"]
[1645916401458,1.02001,39188.0,39170.0,0.3486421]
[1645916401658,0.00037422,39176.0,39170.0,0.3486421]
[1645916401859,0.33465786,39187.0,39177.0,0.00074843]
[1645916402071,0.1,39182.0,39177.0,0.00074843]
[1645916402268,0.02346175,39180.0,39177.0,0.00074843]
[1645916402520,1.25625,39178.0,39177.0,0.00074843]
[1645916402713,1.5957821,39178.0,39177.0,0.00074843]
[1645916402913,1.6059821,39178.0,39177.0,0.00074843]
[1645916403313,1.7698451,39178.0,39177.0,0.00074843]
[1645916403712,1.6698451,39178.0,39177.0,0.00074843]
[1645916403915,1.69330685,39178.0,39177.0,0.00074843]
[1645916406352,1.68310685,39178.0,39177.0,0.00074843]
[1645916407357,1.68310685,39178.0,39177.0,8.43e-06]
[1645916407358,1.7818776,39178.0,39177.0,8.43e-06]
[1645916407558,0.7781,39172.0,39162.0,0.05]
[1645916407759,0.37815,39169.0,39163.0,0.00037436]
[1645916407955,0.3895321,39168.0,39163.0,0.00037436]
[1645916408355,0.4395321,39168.0,39163.0,0.00037436]
[1645916408554,0.4395321,39168.0,39153.0,0.05]
[1645916408755,0.4395321,39168.0,39163.0,0.00035182]
[1645916408958,0.1011,39168.0,39163.0,0.00035182]
[1645916409155,0.1511,39168.0,39166.0,0.02241924]
[1645916409356,0.02346175,39167.0,39166.0,0.02241924]
[1645916409555,0.45271175,39167.0,39166.0,0.02241924]
[1645916409756,0.07456175,39167.0,39166.0,0.02241924]
[1645916410022,0.32456175,39167.0,39166.0,0.02241924]
[1645916410419,0.66299385,39167.0,39166.0,0.02241924]
[1645916411319,0.66399385,39167.0,39166.0,0.02241924]
[1645916411721,0.32556175,39167.0,39166.0,0.02241924]
[1645916411920,0.70371175,39167.0,39166.0,0.02241924]
[1645916412119,1.04214385,39167.0,39166.0,0.02241924]
[1645916412520,1.04114385,39167.0,39166.0,0.02241924]
[1645916413118,0.66299385,39167.0,39166.0,0.02241924]
[1645916413321,0.66399385,39167.0,39166.0,0.02241924]
[1645916413524,0.32556175,39167.0,39166.0,0.02241924]
[1645916414660,0.32456175,39167.0,39166.0,0.02241924]
[1645916414859,0.66299385,39167.0,39166.0,0.02241924]
[1645916415360,0.32556175,39167.0,39166.0,0.02241924]
[1645916416464,0.70271175,39167.0,39166.0,0.02241924]
[1645916416665,0.27346175,39167.0,39166.0,0.02241924]
[1645916419121,0.99004385,39167.0,39163.0,0.00035397]
[1645916419330,0.7781,39165.0,39161.0,0.002]
[1645916419621,0.37815,39162.0,39161.0,0.002]
[1645916419819,0.47925,39162.0,39161.0,0.002]
[1645916420521,0.47925,39162.0,39157.0,0.00141606]
[1645916420719,0.47925,39162.0,39152.0,0.0495]
[1645916420720,0.8176821,39162.0,39152.0,0.0495]
[1645916420920,0.8176821,39162.0,39160.0,0.00035389]
[1645916421354,0.3384321,39161.0,39160.0,0.00035389]
[1645916421558,0.8315671,39161.0,39160.0,0.00035389]
[1645916421756,0.9315671,39161.0,39152.0,0.0495]
[1645916421955,0.37815,39160.0,39159.0,0.0003539]
[1645916422155,0.7676821,39160.0,39159.0,0.0003539]
[1645916422558,0.79114385,39160.0,39159.0,0.0003539]
[1645916422959,0.79114385,39160.0,39152.0,0.0495]
[1645916423157,0.06388681,39158.0,39152.0,0.0495]
[1645916423357,0.37815,39157.0,39154.0,0.001]
[1645916423556,0.42815,39157.0,39154.0,0.001]
[1645916423760,0.47815,39157.0,39154.0,0.001]
[1645916423961,0.8804721,39157.0,39154.0,0.001]
[1645916424166,0.37815,39155.0,39154.0,0.001]
[1645916424362,0.7665821,39155.0,39154.0,0.00135394]
[1645916424561,0.05,39155.0,39154.0,0.00035394]
[1645916424761,0.42815,39155.0,39154.0,0.00035394]
[1645916425407,0.43015,39155.0,39152.0,0.0495]
[1645916425710,0.40161175,39154.0,39153.0,0.00035394]
[1645916426309,0.40033874,39154.0,39153.0,0.00035394]
[1645916426509,0.37815,39154.0,39153.0,0.00035394]
[1645916426714,0.37815,39154.0,39152.0,0.0495]
[1645916426912,0.37815,39154.0,39152.0,0.04985395]
[1645916427212,0.40033874,39153.0,39152.0,0.04985395]
[1645916427708,1.22843874,39153.0,39152.0,0.00035395]
[1645916427910,0.06389652,39151.0,39147.0,0.002]
[1645916428311,0.37815,39150.0,39147.0,0.002]
[1645916428510,0.37815,39150.0,39145.0,0.00351603]
[1645916428751,0.02218874,39148.0,39145.0,0.00351603]
[1645916428957,0.02218874,39148.0,39145.0,0.0021]
[1645916429156,0.06389652,39151.0,39145.0,0.00245399]
[1645916430252,0.02218874,39148.0,39145.0,0.0021]
[1645916430454,0.02218874,39148.0,39146.0,0.00035398]
[1645916430855,1.4946821,39150.0,39146.0,0.00035398]
[1645916431056,1.15625,39149.0,39146.0,0.00035398]
[1645916431357,0.37815,39148.0,39145.0,0.0021]
[1645916431555,0.37815,39148.0,39146.0,0.00035398]
[1645916431754,0.02218874,39147.0,39146.0,0.00035398]
[1645916431957,0.44204652,39151.0,39150.0,0.05024207]
[1645916432411,0.49204652,39151.0,39150.0,0.05024207]
[1645916433004,0.44916108,39151.0,39150.0,0.05024207]
[1645916433207,0.87731108,39151.0,39150.0,0.05024207]
[1645916433405,1.12831108,39151.0,39150.0,0.05024207]
[1645916433607,1.17941108,39151.0,39150.0,0.05024207]
[1645916434307,1.57936108,39151.0,39150.0,0.05024207]
[1645916434509,1.17941108,39151.0,39150.0,0.05024207]
[1645916434707,1.17841108,39151.0,39150.0,0.05024207]
[1645916435108,1.95651108,39151.0,39150.0,0.05024207]
[1645916435309,1.18141108,39151.0,39150.0,0.05024207]
[1645916435919,0.4041,39151.0,39150.0,0.05024207]
[1645916436156,0.353,39151.0,39150.0,0.05024207]
[1645916436355,0.73115,39151.0,39150.0,0.05024207]
[1645916436555,0.72815,39151.0,39150.0,0.05024207]
[1645916438655,0.35,39151.0,39150.0,0.05024207]
[1645916439910,0.72815,39151.0,39150.0,0.05024207]
[1645916442707,0.62815,39151.0,39150.0,0.05024207]
[1645916443013,0.25,39151.0,39150.0,0.42839207]
[1645916444460,0.25,39151.0,39150.0,0.45388207]
[1645916444765,0.362,39167.0,39150.0,0.45388207]
[1645916444766,0.33526456,39166.0,39152.0,0.02549]
[1645916444967,0.362,39167.0,39154.0,0.02549]
[1645916445160,0.362,39167.0,39153.0,0.0511]
[1645916445361,0.37815,39166.0,39152.0,0.02549]
[1645916445760,0.42587006,39167.0,39152.0,0.02549]
[1645916446162,0.12773635,39172.0,39157.0,0.00035716]
[1645916446366,0.37815,39171.0,39157.0,0.00035716]
[1645916447062,0.37815,39171.0,39155.0,0.0495]
[1645916447268,0.37815,39171.0,39162.0,0.00035713]
[1645916447513,0.44201605,39171.0,39162.0,0.00035713]
[1645916447704,0.54201605,39171.0,39162.0,0.00035713]
[1645916448104,0.87643771,39171.0,39162.0,0.00035713]
[1645916448307,0.87643771,39171.0,39156.0,0.02549]
[1645916448504,0.87643771,39171.0,39163.0,0.00035713]
[1645916449205,0.42815,39168.0,39163.0,0.00035713]
[1645916449404,0.37815,39166.0,39158.0,0.003]
[1645916449608,0.06387621,39164.0,39163.0,0.00035159]
[1645916449802,0.44202621,39164.0,39163.0,0.00035159]
[1645916450004,0.37815,39164.0,39163.0,0.00035159]
[1645916450703,0.37815,39164.0,39152.0,0.05]
[1645916450903,0.37815,39166.0,39162.0,0.00035159]
[1645916451359,0.37315,39166.0,39162.0,0.00035159]
[1645916451862,0.37315,39166.0,39152.0,0.05]
[1645916452068,0.37315,39166.0,39162.0,0.00035159]
[1645916453158,0.06386974,39168.0,39152.0,0.01021]
[1645916453360,0.378068,39167.0,39162.0,0.00035196]
[1645916454363,0.378068,39167.0,39163.0,0.00035196]
[1645916455203,0.378068,39167.0,39163.0,0.00025096]
[1645916455410,0.378068,39167.0,39158.0,0.002]
[1645916455604,0.71248966,39167.0,39158.0,0.002]
[1645916456004,0.378068,39167.0,39158.0,0.002]
[1645916456604,0.378068,39167.0,39152.0,0.0357]
[1645916456807,0.39463166,39169.0,39152.0,0.0357]
[1645916457404,0.64463166,39169.0,39152.0,0.0357]
[1645916458859,0.64463166,39169.0,39152.0,0.25077049]
[1645916459060,0.31021,39169.0,39152.0,0.30187049]
[1645916459259,0.378068,39168.0,39159.0,0.00035195]
[1645916460461,0.378068,39168.0,39162.0,0.0003595]
[1645916461361,0.378068,39168.0,39157.0,0.003]
[1645916461561,0.33442166,39167.0,39157.0,0.003]
[1645916461762,0.428068,39166.0,39163.0,0.0003595]
[1645916462163,0.491944,39166.0,39163.0,0.0003595]
[1645916462410,0.33442166,39165.0,39163.0,0.0003595]
[1645916462609,0.378068,39164.0,39157.0,0.003]
[1645916462809,0.05,39164.0,39151.0,0.48391878]
[1645916463012,0.378068,39162.0,39157.0,0.00143821]
[1645916463315,0.378068,39167.0,39157.0,0.00143821]
[1645916463808,0.378068,39167.0,39152.0,0.02549]
[1645916464008,0.33310286,39166.0,39160.0,0.00035144]
[1645916464208,0.378068,39165.0,39160.0,0.00035144]
[1645916465110,0.39331286,39168.0,39151.0,0.49412878]
[1645916465310,0.378068,39167.0,39161.0,0.00035143]
[1645916466364,0.378068,39167.0,39155.0,0.005]
[1645916466561,0.378068,39167.0,39162.0,0.00035142]
[1645916467168,0.01021,39168.0,39162.0,0.00035142]
[1645916467465,0.25,39169.0,39159.0,0.0511]
[1645916468061,0.25,39169.0,39159.0,0.07659]
[1645916468264,0.25,39169.0,39160.0,0.02549]
[1645916468469,0.00012484,39174.0,39169.0,0.32646074]
[1645916468663,0.378068,39173.0,39169.0,0.32646074]
[1645916472315,0.378068,39175.0,39169.0,0.32646074]
[1645916472514,0.00035971,39174.0,39169.0,0.32646074]
[1645916473516,0.378068,39175.0,39169.0,0.32646074]
[1645916473761,0.00035971,39174.0,39169.0,0.32646074]
[1645916474761,0.378068,39175.0,39169.0,0.32646074]
[1645916474961,0.00037321,39174.0,39169.0,0.32646074]
[1645916475963,0.378068,39175.0,39169.0,0.32646074]
[1645916476166,0.00037321,39174.0,39169.0,0.32646074]
[1645916477163,0.378068,39175.0,39169.0,0.32646074]
[1645916477412,0.00037321,39174.0,39169.0,0.32646074]
[1645916478408,0.378068,39175.0,39169.0,0.32646074]
[1645916478607,0.00037321,39174.0,39169.0,0.32646074]
[1645916479609,0.378068,39175.0,39169.0,0.32646074]
[1645916479807,0.00037321,39174.0,39169.0,0.32646074]
[1645916480608,0.25037321,39174.0,39169.0,0.32646074]
[1645916480809,0.25,39174.0,39169.0,0.32646074]
[1645916481009,0.378068,39173.0,39169.0,0.32646074]
[1645916481257,0.25014619,39174.0,39169.0,0.32646074]
[1645916481463,0.378068,39173.0,39169.0,0.32646074]
[1645916489287,0.1511,39172.0,39169.0,0.32646074]
[1645916489486,1.156168,39171.0,39169.0,0.3263603]
[1645916489681,1.156168,39171.0,39164.0,0.004]
[1645916489682,0.25,39169.0,39164.0,0.004]
[1645916489882,1.207268,39168.0,39164.0,0.004]
[1645916490083,0.8781,39166.0,39158.0,0.05]
[1645916490282,0.8781,39166.0,39151.0,0.81644018]
[1645916490283,0.19166676,39163.0,39151.0,0.81644018]
[1645916490583,0.7781,39161.0,39151.0,0.81644018]
[1645916490781,0.429168,39160.0,39151.0,0.48391878]
[1645916491079,0.378068,39158.0,39151.0,0.48391878]
[1645916491281,0.479168,39158.0,39151.0,0.48391878]
[1645916492437,0.54305655,39158.0,39151.0,0.48391878]
[1645916493037,0.54305655,39158.0,39153.0,0.00037421]
[1645916493839,0.54305655,39158.0,39156.0,0.0495]
[1645916494040,0.54305655,39158.0,39151.0,0.48391878]
[1645916494240,0.54305655,39158.0,39154.0,0.0003742]
[1645916495140,0.54305655,39158.0,39151.0,0.48391878]
[1645916496160,0.378068,39156.0,39151.0,0.48391878]
[1645916496558,0.428068,39156.0,39151.0,0.48391878]
[1645916496760,0.553478,39156.0,39151.0,0.48391878]
[1645916496964,0.0511,39155.0,39151.0,0.48391878]
[1645916497160,1.156168,39152.0,39151.0,0.48391878]
[1645916497360,1.267478,39152.0,39151.0,0.48391878]
[1645916497556,0.489378,39152.0,39151.0,0.48391878]
[1645916498257,1.267478,39152.0,39151.0,0.48391878]
[1645916498658,1.331389,39152.0,39151.0,0.48391878]
[1645916498860,1.331389,39152.0,39151.0,0.10041581]
[1645916499063,1.331389,39152.0,39150.0,0.04947009]
[1645916499064,1.456168,39151.0,39150.0,0.04947009]
[1645916499263,1.156168,39150.0,39144.0,0.00401222]
[1645916499465,0.7781,39144.0,39140.0,0.001]
[1645916499662,1.156168,39142.0,39140.0,0.001]
[1645916499913,1.207268,39142.0,39140.0,0.001]
[1645916500114,0.429168,39142.0,39140.0,0.001]
[1645916500708,0.0511,39142.0,39140.0,0.001]
[1645916500910,0.42814,39143.0,39142.0,0.14680619]
[1645916501110,1.25734,39143.0,39142.0,0.14680619]
[1645916501517,1.25834,39143.0,39142.0,0.14680619]
[1645916502018,1.25834,39143.0,39142.0,0.10990619]
[1645916502213,1.26855,39143.0,39142.0,0.10990619]
[1645916502812,1.26755,39143.0,39142.0,0.10990619]
[1645916503014,1.51755,39143.0,39142.0,0.10990619]
[1645916503515,1.51855,39143.0,39142.0,0.10990619]
[1645916504762,1.51755,39143.0,39142.0,0.10990619]
[1645916505562,1.50934,39143.0,39142.0,0.10990619]
[1645916505964,1.50934,39143.0,39142.0,0.10490619]
[1645916506565,1.51955,39143.0,39142.0,0.10490619]
[1645916506765,1.51755,39143.0,39142.0,0.10490619]
[1645916507169,2.14574,39143.0,39142.0,0.10490619]
[1645916507421,2.14774,39143.0,39142.0,0.10490619]
[1645916508615,2.14574,39143.0,39142.0,0.10490619]
[1645916509216,4.33209183,39143.0,39142.0,0.10490619]
[1645916509516,4.33409183,39143.0,39142.0,0.10490619]
[1645916510715,4.33209183,39143.0,39142.0,0.10490619]
[1645916511173,4.43209183,39143.0,39142.0,0.08390619]
[1645916511372,4.43209183,39143.0,39139.0,7.05e-06]
[1645916511373,1.109114,39141.0,39139.0,7.05e-06]
[1645916511572,1.30734,39140.0,39139.0,7.05e-06]
[1645916515609,1.48013919,39140.0,39139.0,7.05e-06]
[1645916516812,1.30734,39140.0,39139.0,7.05e-06]
[1645916517212,0.25,39139.0,39137.0,0.0031]
[1645916517415,1.20734,39138.0,39131.0,0.00090772]
[1645916517615,0.842039,39136.0,39131.0,0.00090772]
[1645916517810,1.321279,39136.0,39131.0,0.00090772]
[1645916518010,1.371279,39136.0,39126.0,0.0021]
[1645916518671,1.371279,39136.0,39126.0,0.3304756]
[1645916518869,1.371279,39136.0,39126.0,0.0021]
[1645916519369,1.371279,39136.0,39134.0,0.00022675]
[1645916520469,1.371279,39136.0,39128.0,0.0041]
[1645916520968,0.593179,39136.0,39128.0,0.0041]
[1645916522070,0.52924,39136.0,39128.0,0.0041]
[1645916523718,0.47814,39136.0,39128.0,0.0041]
[1645916524015,0.37814,39136.0,39128.0,0.0041]
[1645916524215,0.37814,39136.0,39134.0,0.00037182]
[1645916525113,0.37814,39136.0,39135.0,0.03818]
[1645916525517,0.47814,39136.0,39135.0,0.03818]
[1645916528669,0.542076,39136.0,39135.0,0.03818]
[1645916529167,0.542076,39136.0,39135.0,0.03318]
[1645916530816,0.267071,39136.0,39135.0,0.03318]
[1645916531914,0.331007,39136.0,39135.0,0.03318]
[1645916532118,0.391217,39136.0,39135.0,0.03318]
[1645916532318,0.441217,39136.0,39135.0,0.03318]
[1645916534167,0.431007,39136.0,39135.0,0.03318]
[1645916534761,0.43034029,39136.0,39135.0,0.03318]
[1645916534961,1.20844029,39136.0,39135.0,0.03318]
[1645916538721,1.53443143,39136.0,39135.0,0.03318]
[1645916538922,1.20844029,39136.0,39135.0,0.03318]
[1645916540223,1.53443143,39136.0,39135.0,0.03318]
[1645916540425,1.20844029,39136.0,39135.0,0.03318]
[1645916544269,1.21865029,39136.0,39135.0,0.03318]
[1645916545314,20.21865029,39136.0,39135.0,0.03318]
[1645916545909,20.20844029,39136.0,39135.0,0.03318]
[1645916547110,20.20844029,39136.0,39135.0,0.0327326]
[1645916548216,20.20844029,39136.0,39127.0,0.21527049]
[1645916548217,0.267071,39131.0,39127.0,0.21527049]
[1645916548414,1.045171,39129.0,39128.0,0.00133936]
[1645916548666,1.096271,39129.0,39128.0,0.00133936]
[1645916548861,1.146271,39129.0,39128.0,0.00133936]
[1645916549262,1.47226214,39129.0,39127.0,0.0021]
[1645916549465,1.47226214,39129.0,39127.0,0.0011]
[1645916549466,1.37116214,39128.0,39127.0,0.0011]
[1645916549664,1.47226214,39128.0,39127.0,0.0011]
[1645916549965,1.146271,39128.0,39127.0,0.0011]
[1645916551563,1.148271,39128.0,39127.0,0.0011]
[1645916552816,1.146271,39128.0,39127.0,0.0011]
[1645916553720,1.32011168,39128.0,39127.0,0.0011]
[1645916554116,0.267071,39127.0,39116.0,0.0314]
[1645916554318,0.267071,39127.0,39116.0,0.02280037]
[1645916554319,0.7781,39124.0,39116.0,0.02280037]
[1645916554516,0.331014,39125.0,39116.0,0.02280037]
[1645916554517,1.045171,39123.0,39116.0,0.02280037]
[1645916554918,1.095171,39123.0,39116.0,0.0011]
[1645916555320,1.095171,39123.0,39113.0,0.26713811]
[1645916555919,1.095171,39123.0,39112.0,0.0267]
[1645916557071,0.317071,39123.0,39112.0,0.0267]
[1645916557568,1.095171,39123.0,39112.0,0.0267]
[1645916557769,0.00014628,39122.0,39112.0,0.0051]
[1645916557969,0.267071,39121.0,39112.0,0.0051]
[1645916558373,0.267071,39120.0,39114.0,0.21585935]
[1645916558977,0.05,39121.0,39114.0,0.21585935]
[1645916559174,0.267071,39120.0,39114.0,0.21121518]
[1645916559373,0.05,39121.0,39114.0,0.21121518]
[1645916559573,0.267071,39120.0,39114.0,0.21121518]
[1645916559773,0.267071,39121.0,39114.0,0.21121518]
[1645916560210,0.317071,39121.0,39114.0,0.21121518]
[1645916561014,0.32211818,39120.0,39114.0,0.21121518]
[1645916561216,0.37211818,39120.0,39112.0,0.0051]
[1645916561417,0.8292,39119.0,39112.0,0.0051]
[1645916561617,0.7781,39117.0,39112.0,0.0051]
[1645916561811,0.7781,39115.0,39112.0,0.0051]
[1645916562012,0.8292,39114.0,39112.0,0.0051]
[1645916562213,0.0511,39114.0,39112.0,0.0051]
[1645916563311,0.8292,39114.0,39112.0,0.0051]
[1645916563768,0.8312,39114.0,39112.0,0.0051]
[1645916563961,0.0531,39114.0,39112.0,0.0051]
[1645916564962,0.0511,39114.0,39112.0,0.0051]
[1645916565660,0.0531,39114.0,39112.0,0.0051]
[1645916565860,0.0531,39114.0,39112.0,0.0046528]
[1645916566259,0.8812,39114.0,39112.0,0.0046528]
[1645916566563,0.8312,39114.0,39112.0,0.0046528]
[1645916566960,0.8292,39114.0,39112.0,0.0046528]
[1645916567615,0.8312,39114.0,39112.0,0.0046528]
[1645916568614,0.001,39112.0,39111.0,4.90559201]
[1645916568925,1.96135172,39112.0,39086.0,0.12991317]
[1645916569241,1.96135172,39112.0,39081.0,0.13172682]
[1645916569242,1.0,39100.0,39081.0,0.13172682]
[1645916569433,1.0,39100.0,39074.0,0.59427643]
[1645916569434,1.0,39084.0,39074.0,0.0021]
[1645916569622,1.0,39078.0,39062.0,0.22359375]
[1645916569825,0.8292,39077.0,39062.0,0.26967895]
[1645916570021,0.6384,39072.0,39061.0,0.24074316]
[1645916570223,0.06402987,39069.0,39060.0,0.19370286]
[1645916570425,0.19209173,39070.0,39059.0,0.0073894]
[1645916570426,0.1920916,39070.0,39059.0,0.0073894]
[1645916570718,0.5,39074.0,39060.0,0.42822881]
[1645916570919,0.5,39074.0,39063.0,0.37833]
[1645916571171,0.5,39074.0,39061.0,0.378792]
[1645916571375,0.5,39074.0,39062.0,0.49500081]
[1645916571576,0.128016,39082.0,39064.0,0.378792]
[1645916571577,0.064007,39078.0,39064.0,0.378792]
[1645916571778,0.17304004,39083.0,39068.0,0.05489881]
[1645916572087,0.45577438,39097.0,39066.0,0.378792]
[1645916572088,0.17302178,39096.0,39074.0,0.02549]
[1645916572278,0.17302178,39096.0,39086.0,0.6384]
[1645916572487,0.17302178,39096.0,39088.0,0.6384]
[1645916572678,0.17302178,39104.0,39096.0,0.02549]
[1645916572876,0.01,39109.0,39098.0,0.02549]
[1645916572877,0.5098,39109.0,39098.0,0.02549]
[1645916573176,0.01,39109.0,39100.0,0.02549]
[1645916573376,0.01,39109.0,39101.0,0.07559]
[1645916573578,0.01,39109.0,39103.0,0.02549]
[1645916573777,0.01,39109.0,39105.0,0.404282]
[1645916574084,0.01,39109.0,39100.0,0.0999]
[1645916574085,0.01,39109.0,39108.0,0.404282]
[1645916574379,0.2499,39111.0,39110.0,0.403906]
[1645916574581,0.2499,39111.0,39110.0,1.41635772]
[1645916574777,0.2449,39111.0,39110.0,0.81499]
[1645916575024,0.2449,39111.0,39110.0,1.193406]
[1645916575223,0.2459,39111.0,39110.0,1.193406]
[1645916575424,0.2459,39111.0,39110.0,0.81499]
[1645916577130,0.2459,39111.0,39110.0,0.67499]
[1645916578133,0.2459,39111.0,39110.0,0.70048]
[1645916578427,0.2459,39111.0,39110.0,1.00048]
[1645916578669,0.2459,39111.0,39110.0,0.37659]
[1645916578866,0.2459,39111.0,39110.0,0.07659]
[1645916579066,0.2459,39111.0,39110.0,0.0511]
[1645916579867,0.2459,39111.0,39110.0,0.0461]
[1645916580670,0.2459,39111.0,39110.0,0.0361]
[1645916582713,0.2459,39111.0,39110.0,0.06159]
[1645916583112,0.2459,39111.0,39110.0,0.440006]
[1645916583813,0.2459,39111.0,39110.0,0.740006]
[1645916584013,0.2459,39111.0,39110.0,0.714516]
[1645916584515,0.2659,39111.0,39110.0,0.3361]
[1645916584716,0.2659,39111.0,39110.0,0.709516]
[1645916584921,0.2659,39111.0,39110.0,0.409516]
[1645916585119,0.2659,39111.0,39109.0,0.00037033]
[1645916585120,0.944316,39111.0,39109.0,0.00037033]
[1645916585317,0.00534,39110.0,39109.0,0.00037033]
[1645916585517,0.2659,39111.0,39105.0,0.1998]
[1645916585818,0.2659,39111.0,39104.0,0.003]
[1645916586017,0.2659,39111.0,39109.0,0.00022425]
[1645916586684,0.2659,39111.0,39104.0,0.22829]
[1645916586881,0.2659,39111.0,39108.0,0.00022425]
[1645916587881,0.2659,39111.0,39104.0,0.22529]
[1645916588182,0.2659,39111.0,39108.0,0.00035569]
[1645916589090,0.678416,39110.0,39094.0,0.05]
[1645916589288,0.01555,39109.0,39108.0,0.00020914]
[1645916589487,0.01555,39109.0,39102.0,0.00083667]
[1645916589488,0.378416,39105.0,39102.0,0.00083667]
[1645916589692,0.00534,39103.0,39102.0,0.00083667]
[1645916589948,0.38193,39103.0,39102.0,0.00083667]
[1645916590149,0.063997,39098.0,39092.0,0.003]
[1645916590347,0.39215,39097.0,39092.0,0.003]
[1645916590546,0.44215,39097.0,39092.0,0.003]
[1645916590745,0.49215,39097.0,39092.0,0.003]
[1645916590948,0.04119166,39080.0,39079.0,0.2778]
[1645916591145,0.04119166,39080.0,39073.0,0.02549]
[1645916591546,0.04119166,39080.0,39079.0,0.2997]
[1645916591947,0.04119166,39080.0,39079.0,0.0999]
[1645916592347,0.04119166,39080.0,39079.0,0.2997]
[1645916592950,0.04219166,39080.0,39079.0,0.32519]
[1645916593149,0.04119166,39080.0,39079.0,0.2997]
[1645916593349,0.05119166,39080.0,39079.0,0.2997]
[1645916593549,0.05119166,39080.0,39079.0,0.2747]
[1645916593764,0.05119166,39080.0,39079.0,0.1998]
[1645916594764,0.05119166,39080.0,39078.0,0.00035788]
[1645916594963,0.05119166,39080.0,39072.0,0.02549]
[1645916595164,0.05119166,39080.0,39077.0,0.00034683]
[1645916595564,0.07119166,39080.0,39077.0,0.00034683]
[1645916595764,0.07119166,39080.0,39079.0,0.1998]
[1645916595968,0.07119166,39080.0,39077.0,0.00034683]
[1645916596164,0.07119166,39080.0,39078.0,0.378416]
[1645916596364,0.07119166,39080.0,39077.0,0.00034684]
[1645916597412,0.07119166,39080.0,39076.0,0.22529]
[1645916597610,0.07119166,39080.0,39077.0,0.00034684]
[1645916598609,0.07119166,39080.0,39076.0,0.22529]
[1645916598809,0.07119166,39080.0,39076.0,0.21063758]
[1645916599713,0.07119166,39080.0,39078.0,0.02549]
[1645916600412,0.07119166,39080.0,39072.0,0.02549]
[1645916600625,0.07119166,39080.0,39072.0,0.185]
[1645916600626,0.729516,39079.0,39072.0,0.185]
[1645916600821,0.893536,39079.0,39072.0,0.185]
[1645916601016,0.064018,39078.0,39071.0,0.0747]
[1645916601272,0.45644,39077.0,39070.0,0.0011]
[1645916601474,0.48193,39077.0,39070.0,0.0011]
[1645916601674,0.02549,39074.0,39056.0,0.01048889]
[1645916601878,0.503906,39067.0,39066.0,0.002]
[1645916602075,1.633106,39067.0,39066.0,0.002]
[1645916602275,0.00418448,39064.0,39059.0,0.0073894]
[1645916602575,0.00534,39061.0,39059.0,0.01444501]
[1645916602770,0.09217,39061.0,39059.0,0.01444501]
[1645916602974,0.06668,39061.0,39059.0,0.01444501]
[1645916603174,0.09217,39061.0,39059.0,0.01044501]
[1645916603375,0.01024,39060.0,39059.0,0.01044501]
[1645916603571,0.439756,39060.0,39059.0,0.0033894]
[1645916603771,0.429516,39060.0,39059.0,0.0033894]
[1645916604470,0.429516,39060.0,39056.0,0.00025889]
[1645916604471,0.429516,39060.0,39056.0,7.962e-05]
[1645916604671,0.00534,39058.0,39056.0,7.962e-05]
[1645916604927,0.05644,39058.0,39056.0,7.962e-05]
[1645916605117,0.388416,39057.0,39056.0,7.962e-05]
[1645916605317,0.489516,39057.0,39056.0,7.962e-05]
[1645916605521,0.53919969,39057.0,39056.0,7.962e-05]
[1645916605822,0.54119969,39057.0,39056.0,7.962e-05]
[1645916606119,0.54109243,39057.0,39056.0,7.962e-05]
[1645916606321,0.54109243,39057.0,39041.0,0.0747]
[1645916606322,0.00534,39053.0,39041.0,0.0747]
[1645916606532,0.442498,39050.0,39041.0,0.0747]
[1645916606728,0.80359,39046.0,39039.0,0.00286796]
[1645916606920,0.00534,39043.0,39033.0,6.02414022]
[1645916607125,0.403906,39041.0,39033.0,6.02414022]
[1645916607320,0.00534,39039.0,39033.0,6.02414022]
[1645916607527,0.0511,39038.0,39035.0,0.00705821]
[1645916607718,0.378416,39037.0,39035.0,0.00705821]
[1645916608324,0.378416,39037.0,39033.0,6.02414022]
[1645916608774,0.378416,39037.0,39034.0,0.00037147]
[1645916608968,0.01,39035.0,39034.0,0.00037147]
[1645916609171,0.01534,39035.0,39034.0,0.00037147]
[1645916609569,0.01534,39035.0,39033.0,6.01951169]
[1645916609772,0.011,39035.0,39034.0,0.3]
[1645916610170,0.011,39035.0,39033.0,6.01951169]
[1645916610973,0.01,39035.0,39033.0,6.01951169]
[1645916611573,0.064072,39043.0,39034.0,0.32549]
[1645916611777,0.2605,39061.0,39040.0,0.378416]
[1645916611976,0.2605,39061.0,39038.0,0.15]
[1645916611977,0.3,39060.0,39041.0,0.02549]
[1645916612634,0.3,39060.0,39043.0,0.02549]
[1645916612821,0.3,39060.0,39044.0,0.0511]
[1645916613220,0.3,39060.0,39045.0,0.02549]
[1645916613526,0.3,39060.0,39046.0,0.0411]
[1645916613719,0.3,39060.0,39044.0,0.00518412]
[1645916613720,0.3,39060.0,39047.0,0.0511]
[1645916613921,0.3,39060.0,39048.0,0.0511]
[1645916614123,0.378416,39059.0,39048.0,0.0511]
[1645916614524,0.02549,39060.0,39045.0,0.1848]
[1645916614724,0.3,39061.0,39046.0,0.00517601]
[1645916614926,0.064051,39058.0,39046.0,0.00517601]
[1645916615725,0.064051,39058.0,39045.0,0.1848]
[1645916615726,0.001,39047.0,39045.0,0.1848]
[1645916616031,0.001,39047.0,39045.0,0.2359]
[1645916617082,0.001,39047.0,39045.0,0.0511]
[1645916618282,0.021,39047.0,39045.0,0.0511]
[1645916618686,0.021,39047.0,39044.0,0.00034509]
[1645916619281,0.021,39047.0,39039.0,0.0511]
[1645916619481,0.021,39047.0,39044.0,0.00034509]
[1645916619946,0.378416,39046.0,39044.0,0.00034509]
[1645916620146,0.03083,39045.0,39044.0,0.00034509]
[1645916620340,0.30534,39045.0,39044.0,0.00034509]
[1645916620541,0.00534,39045.0,39033.0,6.01951169]
[1645916620740,0.00534,39045.0,39043.0,0.0002139]
[1645916620942,0.00027686,39039.0,39034.0,0.00085577]
[1645916621146,0.353343,39038.0,39034.0,0.00085577]
[1645916621345,0.453343,39038.0,39034.0,0.00085577]
[1645916621542,0.353343,39038.0,39034.0,0.00085577]